fUSD/lending_fUSD_20241216
["ID","MTS","AMOUNT","RATE_DAILY","PERIOD"]
[345611981,1734382233471,-59093.51416921,0.00024699,2]
[345612455,1734382238293,-3903.5,0.00024357,2]
[345612458,1734382238303,-500.0,0.00024698,4]
[345612461,1734382238312,-1762.5,0.00024699,2]
[345612467,1734382238349,-1954.3225435,0.00024699,2]
[345612469,1734382238360,-1916.34,0.00024699,2]
[345612499,1734382238681,-12897.60748729,0.00024699,2]
[345612501,1734382238691,-13059.716,0.00024699,2]
[345612503,1734382238700,-516.34297925,0.00024699,2]
[345612505,1734382238709,-153.09406331,0.000247,2]
[345612507,1734382238730,-153.09406325,0.00024725,2]
[345612510,1734382238739,-516.34297925,0.00024733,2]
[345612511,1734382238749,-950.0,0.0002475,2]
[345612514,1734382238758,-2165.31929,0.0002475,2]
[345612516,1734382238767,-153.09406325,0.0002475,2]
[345612517,1734382238777,-516.34297925,0.00024766,2]
[345612520,1734382238786,-153.09406325,0.00024775,2]
[345612522,1734382238795,-290.69901231,0.00024799,4]
[345612523,1734382238805,-266.91,0.00024799,4]
[345612525,1734382238814,-151.2,0.00024799,4]
[345612528,1734382238824,-500.0,0.00024799,4]
[345612530,1734382238833,-631.05,0.00024799,2]
[345612532,1734382238842,-500.0,0.00024799,4]
[345612534,1734382238851,-500.0,0.00024799,4]
[345612535,1734382238860,-590.09798169,0.00024799,4]
[345612538,1734382238870,-500.0,0.00024799,4]
[345612539,1734382238879,-500.0,0.00024799,4]
[345612541,1734382238888,-500.0,0.00024799,4]
[345612543,1734382238897,-500.0,0.00024799,4]
[345612545,1734382238907,-500.0,0.00024799,4]
[345612547,1734382238916,-500.0,0.00024799,4]
[345612549,1734382238925,-400.0,0.00024799,4]
[345612551,1734382238935,-525.8361628,0.00024799,4]
[345612553,1734382238944,-158.729549,0.00024799,4]
[345612555,1734382238953,-152.44915,0.00024799,4]
[345612557,1734382238964,-500.0,0.00024799,4]
[345612559,1734382238974,-500.0,0.00024799,4]
[345612561,1734382238988,-1636.23,0.00024799,4]
[345612564,1734382238998,-500.0,0.00024799,4]
[345612565,1734382239007,-500.0,0.00024799,4]
[345612567,1734382239016,-150.383867,0.00024799,4]
[345612569,1734382239026,-500.0,0.00024799,4]
[345612571,1734382239035,-500.0,0.00024799,4]
[345612573,1734382239044,-500.0,0.00024799,4]
[345612576,1734382239054,-500.0,0.00024799,4]
[345612578,1734382239063,-500.0,0.00024799,4]
[345612579,1734382239072,-500.0,0.00024799,4]
[345612581,1734382239082,-500.0,0.00024799,4]
[345612583,1734382239092,-500.0,0.00024799,4]
[345612586,1734382239102,-500.0,0.00024799,4]
[345612588,1734382239111,-562.02,0.00024799,4]
[345612589,1734382239121,-500.0,0.00024799,4]
[345612591,1734382239131,-500.0,0.00024799,4]
[345612593,1734382239139,-500.0,0.00024799,4]
[345612595,1734382239149,-500.0,0.00024799,4]
[345612597,1734382239158,-516.34297925,0.000248,2]
[345612599,1734382239167,-5104.6301,0.000248,2]
[345612601,1734382239178,-49978.70089537,0.000248,2]
[345612603,1734382239186,-153.09406325,0.000248,2]
[345612605,1734382239196,-200.0,0.00024824,2]
[345612607,1734382239205,-153.09406325,0.00024825,2]
[345612609,1734382239216,-631.74979015,0.00024828,10]
[345612611,1734382239225,-631.74979015,0.00024829,10]
[345612613,1734382239234,-200.0,0.0002483,10]
[345612615,1734382239243,-12303.74137215,0.00024832,10]
[345612617,1734382239253,-516.34297925,0.00024833,2]
[345612619,1734382239262,-3133.68206017,0.00024834,10]
[345612621,1734382239271,-12303.74137215,0.00024834,10]
[345612623,1734382239280,-12303.74137215,0.00024834,10]
[345612625,1734382239289,-3133.68206017,0.00024835,10]
[345612627,1734382239298,-312.904125,0.00024835,10]
[345612629,1734382239307,-200.0,0.00024836,10]
[345612631,1734382239316,-200.0,0.00024841,10]
[345612633,1734382239325,-631.74979015,0.00024843,10]
[345612635,1734382239335,-153.09406325,0.0002485,2]
[345612637,1734382239344,-312.904125,0.0002485,10]
[345612639,1734382239354,-300.0,0.00024851,2]
[345612641,1734382239363,-200.0,0.00024851,10]
[345612643,1734382239372,-12303.74137215,0.00024853,10]
[345612645,1734382239381,-631.74979015,0.00024853,10]
[345612647,1734382239390,-631.74979015,0.00024857,10]
[345612649,1734382239399,-200.0,0.0002486,10]
[345612651,1734382239409,-312.904125,0.00024866,10]
[345612653,1734382239418,-516.34297925,0.00024867,2]
[345612655,1734382239427,-312.904125,0.00024867,10]
[345612657,1734382239437,-12303.74137215,0.00024875,10]
[345612659,1734382239446,-153.09406325,0.00024875,2]
[345612661,1734382239455,-3133.68206017,0.00024877,10]
[345612663,1734382239467,-3133.68206017,0.0002488,10]
[345612665,1734382239476,-200.0,0.00024883,10]
[345612667,1734382239486,-3133.68206017,0.00024884,10]
[345612669,1734382239495,-312.904125,0.00024888,10]
[345612671,1734382239504,-312.904125,0.00024888,10]
[345612673,1734382239513,-631.74979015,0.00024892,10]
[345612675,1734382239522,-200.0,0.00024893,10]
[345612677,1734382239531,-3133.68206017,0.00024896,10]
[345612679,1734382239541,-12303.74137215,0.00024897,10]
[345612681,1734382239551,-220.0,0.00024899,2]
[345612683,1734382239562,-5000.0,0.00024899,2]
[345612685,1734382239571,-500.0,0.00024899,4]
[345612687,1734382239580,-500.0,0.00024899,4]
[345612689,1734382239589,-500.0,0.00024899,4]
[345612691,1734382239598,-500.45941026,0.00024899,4]
[345612693,1734382239608,-500.0,0.00024899,4]
[345612695,1734382239616,-379.5793356,0.00024899,4]
[345612697,1734382239625,-500.0,0.00024899,4]
[345612699,1734382239634,-500.0,0.00024899,4]
[345612701,1734382239643,-500.0,0.00024899,4]
[345612703,1734382239653,-500.0,0.00024899,4]
[345612705,1734382239662,-500.0,0.00024899,4]
[345612707,1734382239671,-500.0,0.00024899,4]
[345612709,1734382239679,-500.43002403,0.00024899,4]
[345612711,1734382239688,-500.0,0.00024899,4]
[345612713,1734382239697,-500.0,0.00024899,4]
[345612715,1734382239706,-500.0,0.00024899,4]
[345612717,1734382239716,-500.4550819,0.00024899,4]
[345612719,1734382239725,-500.0,0.00024899,4]
[345612721,1734382239733,-500.0,0.00024899,4]
[345612723,1734382239743,-500.0,0.00024899,4]
[345612725,1734382239752,-194.05455004,0.00024899,4]
[345612727,1734382239761,-500.0,0.00024899,4]
[345612729,1734382239769,-500.64215663,0.00024899,4]
[345612731,1734382239778,-224.29408946,0.00024899,4]
[345612733,1734382239787,-500.0,0.00024899,4]
[345612735,1734382239797,-500.0,0.00024899,4]
[345612737,1734382239805,-500.83505859,0.00024899,4]
[345612739,1734382239814,-500.0,0.00024899,4]
[345612740,1734382239823,-500.0,0.00024899,4]
[345612743,1734382239832,-500.0,0.00024899,4]
[345612745,1734382239842,-155.99259904,0.00024899,4]
[345612746,1734382239851,-500.0,0.00024899,4]
[345612748,1734382239861,-461.00850657,0.00024899,4]
[345612751,1734382239871,-352.05,0.00024899,4]
[345612753,1734382239880,-500.0,0.00024899,4]
[345612754,1734382239889,-164.45902278,0.00024899,4]
[345612756,1734382239898,-500.0,0.00024899,4]
[345612758,1734382239907,-500.0,0.00024899,4]
[345612761,1734382239916,-500.0,0.00024899,4]
[345612762,1734382239926,-361.53592492,0.00024899,2]
[345612765,1734382239937,-500.0,0.00024899,4]
[345612767,1734382239947,-500.0,0.00024899,4]
[345612769,1734382239956,-257.17358302,0.00024899,4]
[345612770,1734382239967,-500.0,0.00024899,4]
[345612773,1734382239976,-500.0,0.000249,2]
[345612775,1734382239988,-4830.9493,0.000249,2]
[345612777,1734382239997,-15874.6194,0.000249,2]
[345612779,1734382240010,-516.34297925,0.000249,2]
[345612781,1734382240019,-320.21,0.000249,31]
[345612783,1734382240029,-320.21,0.000249,31]
[345612785,1734382240038,-320.21,0.000249,31]
[345612787,1734382240049,-320.21,0.000249,31]
[345612789,1734382240059,-320.21,0.000249,31]
[345612791,1734382240068,-320.21,0.000249,31]
[345612793,1734382240077,-320.21,0.000249,31]
[345612794,1734382240087,-320.21,0.000249,31]
[345612796,1734382240096,-320.21,0.000249,31]
[345612798,1734382240106,-320.21,0.000249,31]
[345612800,1734382240116,-320.21,0.000249,31]
[345612802,1734382240125,-320.21,0.000249,31]
[345612804,1734382240135,-320.21,0.000249,31]
[345612806,1734382240144,-320.21,0.000249,31]
[345612808,1734382240154,-320.21,0.000249,31]
[345612810,1734382240163,-320.21,0.000249,31]
[345612812,1734382240172,-153.09406325,0.000249,2]
[345612814,1734382240182,-4048.9560157,0.000249,2]
[345612816,1734382240192,-300.0,0.00024904,2]
[345612818,1734382240202,-1447.52370318,0.00024939,2]
[345612820,1734382240211,-500.0,0.00024973,2]
[345612823,1734382240223,-162.23550458,0.00024973,2]
[345612825,1734382240232,-250.27,0.00024987,2]
[345612827,1734382240241,-735.74,0.00024997,4]
[345612829,1734382240250,-556.62,0.00024997,4]
[345612845,1734382240378,-1750.54,0.00024997,4]
[345612847,1734382240388,-4281.02,0.00024997,4]
[345612849,1734382240397,-1216.3,0.00024997,4]
[345612851,1734382240406,-4499.73711292,0.00024997,2]
[345612852,1734382240415,-500.0,0.00024997,4]
[345612854,1734382240424,-500.0,0.00024998,4]
[345612856,1734382240433,-500.0,0.00024998,4]
[345612858,1734382240443,-500.0,0.00024998,4]
[345612860,1734382240452,-500.0,0.00024998,4]
[345612862,1734382240461,-500.0,0.00024998,4]
[345612864,1734382240473,-521.78389225,0.00024998,4]
[345612866,1734382240483,-500.0,0.00024998,4]
[345612868,1734382240492,-500.0,0.00024998,4]
[345612870,1734382240501,-500.0,0.00024998,4]
[345612872,1734382240510,-500.0,0.00024998,4]
[345612874,1734382240519,-500.0,0.00024998,4]
[345612876,1734382240528,-327.0,0.00024998,4]
[345612878,1734382240539,-640.66,0.00024998,4]
[345612880,1734382240548,-500.0,0.00024998,4]
[345612882,1734382240557,-500.0,0.00024998,4]
[345612884,1734382240565,-500.0,0.00024998,4]
[345612886,1734382240574,-500.0,0.00024998,4]
[345612888,1734382240583,-500.0,0.00024998,4]
[345612890,1734382240593,-500.0,0.00024998,4]
[345612892,1734382240602,-500.0,0.00024998,4]
[345612894,1734382240611,-500.0,0.00024998,4]
[345612896,1734382240620,-500.0,0.00024998,4]
[345612897,1734382240629,-500.0,0.00024998,4]
[345612899,1734382240639,-500.0,0.00024998,4]
[345612901,1734382240651,-500.0,0.00024998,4]
[345612903,1734382240661,-500.0,0.00024998,4]
[345612905,1734382240670,-500.0,0.00024998,4]
[345612907,1734382240679,-500.0,0.00024998,4]
[345612909,1734382240689,-500.0,0.00024998,4]
[345612911,1734382240698,-543.11,0.00024998,4]
[345612913,1734382240707,-500.0,0.00024998,4]
[345612915,1734382240719,-500.0,0.00024998,4]
[345612917,1734382240728,-500.0,0.00024998,4]
[345612919,1734382240738,-648.23,0.00024998,4]
[345612921,1734382240747,-500.0,0.00024998,4]
[345612923,1734382240756,-500.0,0.00024998,4]
[345612925,1734382240766,-500.0,0.00024998,4]
[345612927,1734382240775,-500.0,0.00024998,4]
[345612929,1734382240784,-500.0,0.00024998,4]
[345612931,1734382240793,-500.0,0.00024998,4]
[345612933,1734382240802,-500.0,0.00024998,4]
[345612935,1734382240811,-500.0,0.00024998,4]
[345612937,1734382240820,-1636.23,0.00024998,4]
[345612939,1734382240830,-500.0,0.00024998,4]
[345612941,1734382240839,-500.0,0.00024998,4]
[345612942,1734382240848,-500.0,0.00024998,4]
[345612944,1734382240858,-500.0,0.00024998,4]
[345612946,1734382240867,-500.0,0.00024998,4]
[345612948,1734382240876,-500.0,0.00024998,4]
[345612950,1734382240886,-713.8,0.00024998,4]
[345612952,1734382240895,-500.0,0.00024998,4]
[345612954,1734382240904,-735.74,0.00024998,4]
[345612956,1734382240914,-500.0,0.00024998,4]
[345612958,1734382240923,-556.62,0.00024998,4]
[345612960,1734382240932,-500.0,0.00024998,4]
[345612962,1734382240941,-500.0,0.00024998,4]
[345612964,1734382240950,-500.0,0.00024998,4]
[345612966,1734382240959,-1750.54,0.00024998,4]
[345612968,1734382240972,-500.0,0.00024998,4]
[345612970,1734382240981,-500.0,0.00024998,4]
[345612972,1734382240992,-500.0,0.00024998,4]
[345612974,1734382241001,-500.0,0.00024998,4]
[345612976,1734382241011,-500.0,0.00024998,4]
[345612978,1734382241020,-4281.02,0.00024998,4]
[345612980,1734382241031,-500.0,0.00024998,4]
[345612982,1734382241040,-150.0,0.00024998,2]
[345612984,1734382241049,-150.0,0.00024998,2]
[345612985,1734382241061,-500.0,0.00024998,4]
[345612987,1734382241071,-500.0,0.00024998,4]
[345612989,1734382241080,-500.0,0.00024998,4]
[345612991,1734382241089,-500.0,0.00024998,4]
[345612993,1734382241098,-500.0,0.00024998,4]
[345612995,1734382241107,-500.0,0.00024998,4]
[345612997,1734382241117,-500.0,0.00024998,4]
[345612999,1734382241126,-500.0,0.00024998,4]
[345613001,1734382241135,-500.0,0.00024998,4]
[345613003,1734382241146,-500.0,0.00024998,4]
[345613005,1734382241155,-1216.3,0.00024998,4]
[345613007,1734382241164,-500.0,0.00024998,4]
[345613009,1734382241173,-500.0,0.00024998,4]
[345613011,1734382241182,-562.02,0.00024998,4]
[345613013,1734382241191,-500.0,0.00024998,4]
[345613015,1734382241201,-500.0,0.00024998,4]
[345613017,1734382241210,-500.0,0.00024998,4]
[345613019,1734382241221,-500.0,0.00024998,4]
[345613021,1734382241230,-500.0,0.00024998,4]
[345613023,1734382241239,-500.0,0.00024998,4]
[345613025,1734382241248,-500.0,0.00024998,4]
[345613027,1734382241257,-500.0,0.00024998,4]
[345613029,1734382241266,-300.0,0.00024999,10]
[345613031,1734382241275,-300.0,0.00024999,10]
[345613033,1734382241284,-300.0,0.00024999,10]
[345613035,1734382241293,-2000.0,0.00024999,2]
[345613036,1734382241302,-150.0,0.00024999,30]
[345613038,1734382241311,-2000.0,0.00024999,2]
[345613040,1734382241320,-500.0,0.00024999,4]
[345613042,1734382241329,-500.0,0.00024999,4]
[345613044,1734382241338,-500.0,0.00024999,4]
[345613046,1734382241347,-500.0,0.00024999,4]
[345613048,1734382241357,-500.0,0.00024999,4]
[345613050,1734382241366,-500.0,0.00024999,4]
[345613052,1734382241375,-417.68446428,0.00024999,4]
[345613054,1734382241384,-1000.0,0.00024999,2]
[345613056,1734382241393,-906.3175,0.00024999,2]
[345613058,1734382241402,-934.25,0.00024999,2]
[345613060,1734382241411,-500.0,0.00024999,4]
[345613062,1734382241420,-500.0,0.00024999,4]
[345613064,1734382241429,-500.0,0.00024999,4]
[345613066,1734382241438,-545.07578355,0.00024999,4]
[345613068,1734382241447,-196.94,0.00024999,4]
[345613070,1734382241457,-500.0,0.00024999,4]
[345613072,1734382241466,-500.0,0.00024999,4]
[345613073,1734382241484,-500.0,0.00024999,4]
[345613075,1734382241492,-500.0,0.00024999,4]
[345613077,1734382241500,-500.0,0.00024999,4]
[345613079,1734382241509,-500.0,0.00024999,4]
[345613081,1734382241518,-500.0,0.00024999,4]
[345613083,1734382241527,-402.8253229,0.00024999,4]
[345613085,1734382241536,-607.74,0.00024999,4]
[345613087,1734382241545,-649.37699846,0.00024999,4]
[345613089,1734382241553,-543.11,0.00024999,4]
[345613091,1734382241563,-543.11,0.00024999,4]
[345613092,1734382241572,-543.11,0.00024999,4]
[345613094,1734382241581,-543.11,0.00024999,4]
[345613096,1734382241592,-543.11,0.00024999,4]
[345613098,1734382241601,-543.11,0.00024999,4]
[345613100,1734382241610,-543.11,0.00024999,4]
[345613102,1734382241619,-543.11,0.00024999,4]
[345613104,1734382241629,-543.11,0.00024999,4]
[345613106,1734382241638,-543.11,0.00024999,4]
[345613108,1734382241647,-543.11,0.00024999,4]
[345613110,1734382241656,-543.11,0.00024999,4]
[345613112,1734382241665,-543.11,0.00024999,4]
[345613114,1734382241674,-543.11,0.00024999,4]
[345613116,1734382241684,-543.11,0.00024999,4]
[345613118,1734382241693,-543.11,0.00024999,4]
[345613120,1734382241702,-543.11,0.00024999,4]
[345613122,1734382241712,-543.11,0.00024999,4]
[345613124,1734382241722,-543.11,0.00024999,4]
[345613126,1734382241731,-543.11,0.00024999,4]
[345613128,1734382241740,-543.11,0.00024999,4]
[345613130,1734382241749,-543.11,0.00024999,4]
[345613132,1734382241758,-543.23,0.00024999,4]
[345613134,1734382241768,-260.28,0.00024999,4]
[345613136,1734382241777,-500.0,0.00024999,4]
[345613137,1734382241786,-500.0,0.00024999,4]
[345613139,1734382241796,-500.0,0.00024999,4]
[345613141,1734382241804,-500.0,0.00024999,4]
[345613143,1734382241814,-382.12215986,0.00024999,4]
[345613157,1734382241994,-117.87784014,0.00024999,4]
[345613158,1734382242004,-500.0,0.00024999,4]
[345613159,1734382242013,-500.0,0.00024999,4]
[345613160,1734382242023,-500.0,0.00024999,4]
[345613161,1734382242032,-648.23,0.00024999,4]
[345613162,1734382242042,-215.60993988,0.00024999,4]
[345613163,1734382242083,-284.39006012,0.00024999,4]
[345613164,1734382242092,-648.23,0.00024999,4]
[345613165,1734382242101,-158.729549,0.00024999,4]
[345613166,1734382242110,-152.44915,0.00024999,4]
[345613167,1734382242119,-500.0,0.00024999,4]
[345613168,1734382242127,-152.44915,0.00024999,4]
[345613169,1734382242136,-500.0,0.00024999,4]
[345613170,1734382242145,-648.23,0.00024999,4]
[345613171,1734382242153,-152.44915,0.00024999,4]
[345613172,1734382242163,-500.0,0.00024999,4]
[345613173,1734382242171,-648.23,0.00024999,4]
[345613174,1734382242180,-500.0,0.00024999,4]
[345613175,1734382242190,-648.23,0.00024999,4]
[345613176,1734382242199,-152.44915,0.00024999,4]
[345613177,1734382242208,-648.23,0.00024999,4]
[345613178,1734382242217,-152.44915,0.00024999,4]
[345613179,1734382242228,-500.0,0.00024999,4]
[345613180,1734382242238,-648.23,0.00024999,4]
[345613181,1734382242247,-152.44915,0.00024999,4]
[345613182,1734382242257,-500.0,0.00024999,4]
[345613183,1734382242266,-648.23,0.00024999,4]
[345613184,1734382242276,-152.44915,0.00024999,4]
[345613185,1734382242285,-648.23,0.00024999,4]
[345613186,1734382242294,-648.23,0.00024999,4]
[345613187,1734382242303,-286.00918173,0.00024999,4]
[345613188,1734382242313,-648.23,0.00024999,4]
[345613189,1734382242322,-648.23,0.00024999,4]
[345613190,1734382242331,-500.0,0.00024999,4]
[345613191,1734382242339,-648.23,0.00024999,4]
[345613192,1734382242349,-500.0,0.00024999,4]
[345613193,1734382242358,-648.23,0.00024999,4]
[345613194,1734382242367,-500.0,0.00024999,4]
[345613196,1734382242376,-648.23,0.00024999,4]
[345613198,1734382242386,-500.0,0.00024999,4]
[345613200,1734382242395,-648.23,0.00024999,4]
[345613201,1734382242404,-500.0,0.00024999,4]
[345613203,1734382242412,-500.0,0.00024999,4]
[345613205,1734382242421,-648.23,0.00024999,4]
[345613207,1734382242431,-500.0,0.00024999,4]
[345613208,1734382242440,-648.23,0.00024999,4]
[345613209,1734382242450,-500.0,0.00024999,4]
[345613210,1734382242459,-648.23,0.00024999,4]
[345613211,1734382242472,-500.0,0.00024999,4]
[345613212,1734382242481,-500.0,0.00024999,4]
[345613213,1734382242491,-648.23,0.00024999,4]
[345613214,1734382242500,-500.0,0.00024999,4]
[345613215,1734382242509,-500.0,0.00024999,4]
[345613216,1734382242518,-500.0,0.00024999,4]
[345613217,1734382242526,-500.0,0.00024999,4]
[345613218,1734382242536,-648.23,0.00024999,4]
[345613219,1734382242546,-500.0,0.00024999,4]
[345613220,1734382242557,-500.0,0.00024999,4]
[345613221,1734382242566,-648.23,0.00024999,4]
[345613222,1734382242576,-500.0,0.00024999,4]
[345613223,1734382242585,-648.40417844,0.00024999,4]
[345613224,1734382242594,-500.0,0.00024999,4]
[345613225,1734382242604,-500.0,0.00024999,4]
[345613226,1734382242613,-500.0,0.00024999,4]
[345613227,1734382242623,-311.66887392,0.00024999,4]
[345613228,1734382242632,-500.0,0.00024999,4]
[345613229,1734382242642,-500.0,0.00024999,4]
[345613230,1734382242652,-500.0,0.00024999,4]
[345613231,1734382242670,-500.0,0.00024999,4]
[345613232,1734382242680,-500.0,0.00024999,4]
[345613233,1734382242689,-500.0,0.00024999,4]
[345613234,1734382242699,-500.0,0.00024999,4]
[345613235,1734382242708,-500.0,0.00024999,4]
[345613236,1734382242720,-500.0,0.00024999,4]
[345613237,1734382242730,-500.0,0.00024999,4]
[345613239,1734382242739,-500.0,0.00024999,4]
[345613241,1734382242748,-500.0,0.00024999,4]
[345613243,1734382242758,-500.0,0.00024999,4]
[345613246,1734382242767,-500.0,0.00024999,4]
[345613247,1734382242777,-172.45198651,0.00024999,4]
[345613249,1734382242786,-500.0,0.00024999,4]
[345613251,1734382242795,-500.0,0.00024999,4]
[345613253,1734382242804,-500.0,0.00024999,4]
[345613255,1734382242813,-500.0,0.00024999,4]
[345613257,1734382242823,-500.0,0.00024999,4]
[345613259,1734382242832,-500.0,0.00024999,4]
[345613261,1734382242842,-500.0,0.00024999,4]
[345613263,1734382242851,-500.0,0.00024999,4]
[345613265,1734382242861,-500.0,0.00024999,4]
[345613267,1734382242871,-500.0,0.00024999,4]
[345613269,1734382242880,-500.0,0.00024999,4]
[345613271,1734382242889,-500.0,0.00024999,4]
[345613273,1734382242899,-500.0,0.00024999,4]
[345613275,1734382242908,-500.0,0.00024999,4]
[345613277,1734382242917,-500.0,0.00024999,4]
[345613279,1734382242928,-500.0,0.00024999,4]
[345613281,1734382242947,-500.0,0.00024999,4]
[345613283,1734382242955,-1392.48177632,0.00024999,20]
[345613285,1734382242964,-500.0,0.00024999,4]
[345613287,1734382242975,-500.0,0.00024999,4]
[345613289,1734382242988,-183.6094,0.00024999,4]
[345613290,1734382242998,-1636.23,0.00024999,4]
[345613292,1734382243007,-500.0,0.00024999,4]
[345613294,1734382243016,-1636.23,0.00024999,4]
[345613296,1734382243027,-500.0,0.00024999,4]
[345613298,1734382243036,-1636.23,0.00024999,4]
[345613300,1734382243045,-500.0,0.00024999,4]
[345613302,1734382243054,-1636.23,0.00024999,4]
[345613304,1734382243065,-500.0,0.00024999,4]
[345613306,1734382243075,-1636.23,0.00024999,4]
[345613308,1734382243084,-1636.23,0.00024999,4]
[345613310,1734382243093,-500.0,0.00024999,4]
[345613313,1734382243103,-1636.23,0.00024999,4]
[345613316,1734382243112,-500.0,0.00024999,4]
[345613333,1734382243243,-526.42,0.00024999,4]
[345613334,1734382243252,-1636.23,0.00024999,4]
[345613335,1734382243261,-1636.23,0.00024999,4]
[345613336,1734382243270,-1636.23,0.00024999,4]
[345613337,1734382243280,-1636.23,0.00024999,4]
[345613338,1734382243289,-1636.23,0.00024999,4]
[345613339,1734382243298,-1636.23,0.00024999,4]
[345613341,1734382243307,-1636.23,0.00024999,4]
[345613343,1734382243317,-1636.23,0.00024999,4]
[345613345,1734382243327,-1636.23,0.00024999,4]
[345613347,1734382243336,-1636.23,0.00024999,4]
[345613349,1734382243345,-1636.23,0.00024999,4]
[345613351,1734382243354,-1636.23,0.00024999,4]
[345613353,1734382243363,-1636.23,0.00024999,4]
[345613355,1734382243373,-1636.23,0.00024999,4]
[345613357,1734382243382,-1636.36,0.00024999,4]
[345613358,1734382243391,-202.35,0.00024999,4]
[345613359,1734382243400,-500.0,0.00024999,4]
[345613360,1734382243409,-500.0,0.00024999,4]
[345613361,1734382243419,-735.74,0.00024999,4]
[345613362,1734382243428,-735.74,0.00024999,4]
[345613363,1734382243437,-735.74,0.00024999,4]
[345613364,1734382243446,-735.74,0.00024999,4]
[345613365,1734382243455,-735.74,0.00024999,4]
[345613366,1734382243465,-735.74,0.00024999,4]
[345613367,1734382243477,-735.74,0.00024999,4]
[345613368,1734382243487,-379.62,0.00024999,4]
[345613369,1734382243498,-735.74,0.00024999,4]
[345613370,1734382243507,-735.74,0.00024999,4]
[345613371,1734382243517,-735.74,0.00024999,4]
[345613372,1734382243526,-735.74,0.00024999,4]
[345613373,1734382243536,-735.74,0.00024999,4]
[345613374,1734382243546,-735.74,0.00024999,4]
[345613375,1734382243556,-735.74,0.00024999,4]
[345613376,1734382243564,-735.74,0.00024999,4]
[345613377,1734382243574,-735.74,0.00024999,4]
[345613378,1734382243584,-735.74,0.00024999,4]
[345613379,1734382243593,-735.74,0.00024999,4]
[345613380,1734382243602,-735.74,0.00024999,4]
[345613381,1734382243611,-735.74,0.00024999,4]
[345613382,1734382243621,-735.86,0.00024999,4]
[345613383,1734382243630,-556.62,0.00024999,4]
[345613384,1734382243640,-556.62,0.00024999,4]
[345613385,1734382243649,-556.62,0.00024999,4]
[345613386,1734382243658,-556.62,0.00024999,4]
[345613387,1734382243668,-556.62,0.00024999,4]
[345613388,1734382243677,-556.62,0.00024999,4]
[345613389,1734382243687,-556.62,0.00024999,4]
[345613390,1734382243696,-556.62,0.00024999,4]
[345613391,1734382243706,-556.62,0.00024999,4]
[345613392,1734382243716,-556.62,0.00024999,4]
[345613393,1734382243730,-556.62,0.00024999,4]
[345613394,1734382243740,-556.62,0.00024999,4]
[345613395,1734382243750,-556.62,0.00024999,4]
[345613396,1734382243760,-556.62,0.00024999,4]
[345613398,1734382243770,-556.62,0.00024999,4]
[345613400,1734382243781,-556.62,0.00024999,4]
[345613401,1734382243791,-556.62,0.00024999,4]
[345613402,1734382243801,-556.62,0.00024999,4]
[345613403,1734382243811,-556.62,0.00024999,4]